[Event "Titled Tuesday Blitz March 07 Early 2023"]
[White "Berkes, Ferenc"]
[Black "Szyszylo, Rafal"]
[WhiteFideId "718572"]
[BlackFideId "1109626"]
[WhiteElo "2664"]
[BlackElo "1951"]
[Result "1/2-1/2"]
[Round "08"]
[TimeControl "180+2"]
[Date "2023.03.07"]
[WhiteClock "0:00:07"]
[BlackClock "0:00:06"]

1. e4 {[%clk 0:02:58]}  g6 {[%clk 0:02:59]} 2. d4 {[%clk 0:02:57]}  d6 {[%clk 0:03:00]} 3. Nc3 {[%clk 0:02:57]}  Nf6 {[%clk 0:03:00]} 4. h4 {[%clk 0:02:55]}  h5 {[%clk 0:02:59]} 5. f3 {[%clk 0:02:51]}  Bg7 {[%clk 0:03:00]} 6. Be3 {[%clk 0:02:49]}  Nbd7 {[%clk 0:02:58]} 7. Qd2 {[%clk 0:02:49]}  c5 {[%clk 0:02:51]} 8. Nh3 {[%clk 0:02:45]}  Qa5 {[%clk 0:02:45]} 9. Ng5 {[%clk 0:02:41]}  O-O {[%clk 0:02:44]} 10. Be2 {[%clk 0:02:21]}  a6 {[%clk 0:02:43]} 11. O-O {[%clk 0:02:13]}  b5 {[%clk 0:02:30]} 12. dxc5 {[%clk 0:02:08]}  Nxc5 {[%clk 0:02:25]} 13. Nd5 {[%clk 0:01:52]}  Qxd2 {[%clk 0:02:21]} 14. Nxe7+ {[%clk 0:01:49]}  Kh8 {[%clk 0:02:21]} 15. Bxd2 {[%clk 0:01:49]}  Bb7 {[%clk 0:02:17]} 16. Bf4 {[%clk 0:01:49]}  Rad8 {[%clk 0:02:02]} 17. Rad1 {[%clk 0:01:46]}  d5 {[%clk 0:01:56]} 18. Bc7 {[%clk 0:01:44]}  Rd7 {[%clk 0:01:47]} 19. Nxf7+ {[%clk 0:01:29]}  Rxf7 {[%clk 0:01:45]} 20. Nxg6+ {[%clk 0:01:26]}  Kh7 {[%clk 0:01:46]} 21. Ne5 {[%clk 0:01:25]}  Rxc7 {[%clk 0:01:45]} 22. Nxf7 {[%clk 0:01:25]}  Rxf7 {[%clk 0:01:45]} 23. e5 {[%clk 0:01:26]}  Nfd7 {[%clk 0:01:31]} 24. f4 {[%clk 0:01:25]}  Re7 {[%clk 0:01:23]} 25. Bxh5 {[%clk 0:01:24]}  Ne4 {[%clk 0:01:20]} 26. Bf3 {[%clk 0:01:19]}  Ndc5 {[%clk 0:01:18]} 27. b4 {[%clk 0:01:15]}  Na4 {[%clk 0:01:17]} 28. Rd3 {[%clk 0:01:01]}  Nac3 {[%clk 0:01:14]} 29. g4 {[%clk 0:00:58]}  Rc7 {[%clk 0:01:03]} 30. g5 {[%clk 0:00:52]}  Kg6 {[%clk 0:01:03]} 31. h5+ {[%clk 0:00:51]}  Kf5 {[%clk 0:01:04]} 32. Bg2 {[%clk 0:00:51]}  Nxg5 {[%clk 0:00:54]} 33. fxg5+ {[%clk 0:00:47]}  Kxg5 {[%clk 0:00:55]} 34. Rg3+ {[%clk 0:00:45]}  Kxh5 {[%clk 0:00:54]} 35. Bf3+ {[%clk 0:00:41]}  Kh6 {[%clk 0:00:49]} 36. Kg2 {[%clk 0:00:41]}  Kh7 {[%clk 0:00:40]} 37. Rh1+ {[%clk 0:00:39]}  Kg8 {[%clk 0:00:39]} 38. Bg4 {[%clk 0:00:36]}  d4+ {[%clk 0:00:39]} 39. Bf3 {[%clk 0:00:36]}  Bxf3+ {[%clk 0:00:35]} 40. Kxf3 {[%clk 0:00:37]}  Rf7+ {[%clk 0:00:35]} 41. Kg2 {[%clk 0:00:32]}  Kf8 {[%clk 0:00:35]} 42. e6 {[%clk 0:00:31]}  Re7 {[%clk 0:00:32]} 43. Rf1+ {[%clk 0:00:29]}  Ke8 {[%clk 0:00:31]} 44. Rg6 {[%clk 0:00:29]}  Nd5 {[%clk 0:00:25]} 45. Kg3 {[%clk 0:00:22]}  Ne3 {[%clk 0:00:24]} 46. Rh1 {[%clk 0:00:18]}  Kd8 {[%clk 0:00:23]} 47. Kf4 {[%clk 0:00:16]}  Kc7 {[%clk 0:00:23]} 48. Ke4 {[%clk 0:00:11]}  Kd6 {[%clk 0:00:23]} 49. Rh7 {[%clk 0:00:11]}  Bf8 {[%clk 0:00:18]} 50. Rf7 {[%clk 0:00:11]}  Rxf7 {[%clk 0:00:17]} 51. exf7+ {[%clk 0:00:12]}  Ke7 {[%clk 0:00:17]} 52. Rxa6 {[%clk 0:00:11]}  Nxc2 {[%clk 0:00:17]} 53. Ra7+ {[%clk 0:00:08]}  Ke6 {[%clk 0:00:16]} 54. a3 {[%clk 0:00:09]}  Bg7 {[%clk 0:00:10]} 55. Kd3 {[%clk 0:00:09]}  Ne3 {[%clk 0:00:09]} 56. Rb7 {[%clk 0:00:09]}  Nc4 {[%clk 0:00:09]} 57. f8=Q {[%clk 0:00:07]}  Bxf8 {[%clk 0:00:08]} 58. Rxb5 {[%clk 0:00:08]}  Nxa3 {[%clk 0:00:08]} 59. Rh5 {[%clk 0:00:07]}  Bxb4 {[%clk 0:00:07]} 60. Kxd4 {[%clk 0:00:07]}  Bd6 {[%clk 0:00:07]} 61. Rh6+ {[%clk 0:00:06]}  Ke7 {[%clk 0:00:07]} 62. Rxd6 {[%clk 0:00:07]}  Kxd6 {[%clk 0:00:06]} 1/2-1/2


[Site "https://www.chess.com"]

[Event "Titled Tuesday Blitz March 07 Early 2023"]
[White "Prudnykova, Olga"]
[Black "Kalajzic, Ivan"]
[WhiteFideId "14121093"]
[BlackFideId "14506378"]
[WhiteElo "2113"]
[BlackElo "2203"]
[Result "0-1"]
[Round "08"]
[TimeControl "180+2"]
[Date "2023.03.07"]
[WhiteClock "0:00:08"]
[BlackClock "0:00:10"]

1. e4 {[%clk 0:03:00]}  Nc6 {[%clk 0:02:59]} 2. d4 {[%clk 0:02:59]}  d5 {[%clk 0:02:58]} 3. e5 {[%clk 0:02:40]}  f6 {[%clk 0:02:58]} 4. exf6 {[%clk 0:02:29]}  Nxf6 {[%clk 0:02:58]} 5. Bd3 {[%clk 0:02:29]}  e5 {[%clk 0:02:56]} 6. dxe5 {[%clk 0:02:29]}  Nxe5 {[%clk 0:02:56]} 7. Be2 {[%clk 0:02:29]}  Bd6 {[%clk 0:02:55]} 8. Nf3 {[%clk 0:02:24]}  Nxf3+ {[%clk 0:02:51]} 9. Bxf3 {[%clk 0:02:24]}  c6 {[%clk 0:02:51]} 10. O-O {[%clk 0:02:22]}  O-O {[%clk 0:02:51]} 11. Nd2 {[%clk 0:02:11]}  Bf5 {[%clk 0:02:49]} 12. Re1 {[%clk 0:02:08]}  Qc7 {[%clk 0:02:43]} 13. h3 {[%clk 0:02:05]}  Rf7 {[%clk 0:02:33]} 14. c4 {[%clk 0:02:02]}  d4 {[%clk 0:02:13]} 15. Nf1 {[%clk 0:02:00]}  c5 {[%clk 0:02:11]} 16. Bg5 {[%clk 0:01:59]}  Raf8 {[%clk 0:02:06]} 17. a3 {[%clk 0:01:57]}  b6 {[%clk 0:02:05]} 18. Rc1 {[%clk 0:01:46]}  Bf4 {[%clk 0:02:02]} 19. Bxf4 {[%clk 0:01:41]}  Qxf4 {[%clk 0:02:01]} 20. Qd2 {[%clk 0:01:26]}  Qd6 {[%clk 0:01:55]} 21. Qg5 {[%clk 0:01:21]}  Bd7 {[%clk 0:01:45]} 22. b4 {[%clk 0:01:18]}  Bc6 {[%clk 0:01:35]} 23. bxc5 {[%clk 0:01:12]}  bxc5 {[%clk 0:01:32]} 24. Nh2 {[%clk 0:01:04]}  h6 {[%clk 0:01:30]} 25. Qh4 {[%clk 0:01:01]}  d3 {[%clk 0:01:08]} 26. Rcd1 {[%clk 0:01:01]}  Rd7 {[%clk 0:00:56]} 27. Re3 {[%clk 0:00:52]}  Bxf3 {[%clk 0:00:53]} 28. Nxf3 {[%clk 0:00:53]}  Qa6 {[%clk 0:00:42]} 29. Rdxd3 {[%clk 0:00:50]}  Rxd3 {[%clk 0:00:37]} 30. Rxd3 {[%clk 0:00:51]}  Re8 {[%clk 0:00:37]} 31. g3 {[%clk 0:00:43]}  Ne4 {[%clk 0:00:30]} 32. Qh5 {[%clk 0:00:38]}  Nf6 {[%clk 0:00:28]} 33. Qh4 {[%clk 0:00:35]}  Ne4 {[%clk 0:00:27]} 34. Qh5 {[%clk 0:00:17]}  Qe6 {[%clk 0:00:27]} 35. Re3 {[%clk 0:00:14]}  Qc6 {[%clk 0:00:23]} 36. Nd2 {[%clk 0:00:12]}  Nf6 {[%clk 0:00:22]} 37. Rxe8+ {[%clk 0:00:10]}  Nxe8 {[%clk 0:00:23]} 38. Qe5 {[%clk 0:00:08]}  Nf6 {[%clk 0:00:21]} 39. Nb3 {[%clk 0:00:08]}  Nd7 {[%clk 0:00:19]} 40. Qd5+ {[%clk 0:00:07]}  Qxd5 {[%clk 0:00:20]} 41. cxd5 {[%clk 0:00:08]}  Kf7 {[%clk 0:00:20]} 42. Kf1 {[%clk 0:00:08]}  Ke7 {[%clk 0:00:20]} 43. Ke2 {[%clk 0:00:08]}  Kd6 {[%clk 0:00:21]} 44. Kd3 {[%clk 0:00:08]}  Kxd5 {[%clk 0:00:21]} 45. Nd2 {[%clk 0:00:07]}  Ne5+ {[%clk 0:00:21]} 46. Kc3 {[%clk 0:00:07]}  g5 {[%clk 0:00:18]} 47. f4 {[%clk 0:00:06]}  gxf4 {[%clk 0:00:17]} 48. gxf4 {[%clk 0:00:07]}  Ng6 {[%clk 0:00:18]} 49. f5 {[%clk 0:00:06]}  Ne7 {[%clk 0:00:17]} 50. f6 {[%clk 0:00:06]}  Ng6 {[%clk 0:00:17]} 51. f7 {[%clk 0:00:06]}  Ke6 {[%clk 0:00:17]} 52. Kc4 {[%clk 0:00:06]}  Kxf7 {[%clk 0:00:17]} 53. Kxc5 {[%clk 0:00:07]}  Nf4 {[%clk 0:00:17]} 54. h4 {[%clk 0:00:07]}  Ng2 {[%clk 0:00:16]} 55. Nf3 {[%clk 0:00:07]}  Kf6 {[%clk 0:00:15]} 56. Kc6 {[%clk 0:00:07]}  Kf5 {[%clk 0:00:15]} 57. Kb7 {[%clk 0:00:08]}  Kf4 {[%clk 0:00:16]} 58. Nd2 {[%clk 0:00:07]}  Nxh4 {[%clk 0:00:16]} 59. Kxa7 {[%clk 0:00:08]}  Nf3 {[%clk 0:00:14]} 60. Nf1 {[%clk 0:00:07]}  Nd4 {[%clk 0:00:12]} 61. a4 {[%clk 0:00:07]}  Nb3 {[%clk 0:00:11]} 62. Kb6 {[%clk 0:00:05]}  Kf3 {[%clk 0:00:09]} 63. Nd2+ {[%clk 0:00:05]}  Nxd2 {[%clk 0:00:09]} 64. a5 {[%clk 0:00:06]}  Nc4+ {[%clk 0:00:09]} 65. Kb5 {[%clk 0:00:07]}  Nxa5 {[%clk 0:00:10]} 66. Kxa5 {[%clk 0:00:08]}  h5 {[%clk 0:00:10]} 0-1


[Site "https://www.chess.com"]

[Event "Titled Tuesday Blitz March 07 Early 2023"]
[White "Tyagi, Kushan"]
[Black "Womacka, Mathias"]
[WhiteFideId "2040069"]
[BlackFideId "4611390"]
[WhiteElo "2358"]
[BlackElo "2377"]
[Result "1-0"]
[Round "08"]
[TimeControl "180+2"]
[Date "2023.03.07"]
[WhiteClock "0:00:06"]
[BlackClock "0:00:08"]

1. d4 {[%clk 0:02:56]}  Nf6 {[%clk 0:02:59]} 2. c4 {[%clk 0:02:57]}  e6 {[%clk 0:02:59]} 3. g3 {[%clk 0:02:56]}  c5 {[%clk 0:02:58]} 4. d5 {[%clk 0:02:55]}  exd5 {[%clk 0:02:59]} 5. cxd5 {[%clk 0:02:55]}  d6 {[%clk 0:03:00]} 6. Nc3 {[%clk 0:02:56]}  g6 {[%clk 0:03:00]} 7. Nf3 {[%clk 0:02:56]}  Bg7 {[%clk 0:03:01]} 8. Bg2 {[%clk 0:02:57]}  O-O {[%clk 0:03:01]} 9. O-O {[%clk 0:02:57]}  Nbd7 {[%clk 0:03:01]} 10. Nd2 {[%clk 0:02:53]}  Ne8 {[%clk 0:02:54]} 11. a4 {[%clk 0:02:48]}  f5 {[%clk 0:02:52]} 12. Nc4 {[%clk 0:02:38]}  Ne5 {[%clk 0:02:50]} 13. Na3 {[%clk 0:02:37]}  Bd7 {[%clk 0:02:44]} 14. h3 {[%clk 0:02:34]}  Rb8 {[%clk 0:02:37]} 15. Kh2 {[%clk 0:02:33]}  a6 {[%clk 0:02:35]} 16. f4 {[%clk 0:02:26]}  Nf7 {[%clk 0:02:33]} 17. e4 {[%clk 0:02:26]}  b5 {[%clk 0:02:22]} 18. axb5 {[%clk 0:02:17]}  axb5 {[%clk 0:02:23]} 19. Nc2 {[%clk 0:02:02]}  b4 {[%clk 0:02:20]} 20. Nb1 {[%clk 0:01:53]}  fxe4 {[%clk 0:02:07]} 21. Bxe4 {[%clk 0:01:51]}  Nf6 {[%clk 0:02:05]} 22. Bg2 {[%clk 0:01:51]}  Re8 {[%clk 0:01:57]} 23. Nd2 {[%clk 0:01:49]}  Bb5 {[%clk 0:01:52]} 24. Re1 {[%clk 0:01:48]}  Qd7 {[%clk 0:01:32]} 25. Ne3 {[%clk 0:01:43]}  Nh6 {[%clk 0:01:22]} 26. Ndc4 {[%clk 0:01:30]}  Nf5 {[%clk 0:01:18]} 27. Nxf5 {[%clk 0:01:20]}  gxf5 {[%clk 0:01:18]} 28. Ne3 {[%clk 0:01:13]}  Ne4 {[%clk 0:01:09]} 29. Qc2 {[%clk 0:01:09]}  b3 {[%clk 0:00:39]} 30. Qb1 {[%clk 0:00:55]}  Nf2 {[%clk 0:00:36]} 31. Bd2 {[%clk 0:00:44]}  Bd3 {[%clk 0:00:32]} 32. Qc1 {[%clk 0:00:43]}  Be4 {[%clk 0:00:28]} 33. Bf1 {[%clk 0:00:26]}  Nd3 {[%clk 0:00:26]} 34. Bxd3 {[%clk 0:00:26]}  Bxd3 {[%clk 0:00:27]} 35. Bc3 {[%clk 0:00:25]}  Bd4 {[%clk 0:00:23]} 36. Qd2 {[%clk 0:00:22]}  Bxe3 {[%clk 0:00:18]} 37. Rxe3 {[%clk 0:00:22]}  Rxe3 {[%clk 0:00:17]} 38. Qxe3 {[%clk 0:00:22]}  Be4 {[%clk 0:00:18]} 39. Rd1 {[%clk 0:00:17]}  Re8 {[%clk 0:00:15]} 40. Re1 {[%clk 0:00:13]}  Kf7 {[%clk 0:00:13]} 41. Qe2 {[%clk 0:00:13]}  Kg6 {[%clk 0:00:12]} 42. Qf2 {[%clk 0:00:12]}  Bxd5 {[%clk 0:00:11]} 43. Rxe8 {[%clk 0:00:11]}  Qxe8 {[%clk 0:00:12]} 44. Qd2 {[%clk 0:00:11]}  Qe4 {[%clk 0:00:12]} 45. g4 {[%clk 0:00:08]}  Qh1+ {[%clk 0:00:11]} 46. Kg3 {[%clk 0:00:08]}  Qg1+ {[%clk 0:00:08]} 47. Kh4 {[%clk 0:00:08]}  fxg4 {[%clk 0:00:09]} 48. hxg4 {[%clk 0:00:07]}  Bf7 {[%clk 0:00:08]} 49. f5# {[%clk 0:00:06]} 1-0


[Site "https://www.chess.com"]

[Event "Titled Tuesday Blitz March 07 Early 2023"]
[White "Khamdamova, Afruza"]
[Black "MrAnnihilation"]
[WhiteFideId "14210444"]
[WhiteElo "2210"]
[BlackElo "2354"]
[Result "1-0"]
[Round "08"]
[TimeControl "180+2"]
[Date "2023.03.07"]
[WhiteClock "0:00:56"]
[BlackClock "0:00:24"]

1. c4 {[%clk 0:03:00]}  c5 {[%clk 0:02:50]} 2. Nc3 {[%clk 0:03:00]}  g6 {[%clk 0:02:50]} 3. Nf3 {[%clk 0:03:00]}  Bg7 {[%clk 0:02:51]} 4. g3 {[%clk 0:03:00]}  Nc6 {[%clk 0:02:51]} 5. Bg2 {[%clk 0:03:01]}  Rb8 {[%clk 0:02:44]} 6. O-O {[%clk 0:03:01]}  a6 {[%clk 0:02:44]} 7. e3 {[%clk 0:03:00]}  b5 {[%clk 0:02:44]} 8. cxb5 {[%clk 0:02:57]}  axb5 {[%clk 0:02:45]} 9. d4 {[%clk 0:02:57]}  b4 {[%clk 0:02:45]} 10. Ne4 {[%clk 0:02:53]}  cxd4 {[%clk 0:02:45]} 11. Nxd4 {[%clk 0:02:53]}  Nxd4 {[%clk 0:02:41]} 12. exd4 {[%clk 0:02:53]}  Nf6 {[%clk 0:02:26]} 13. h4 {[%clk 0:02:31]}  Nxe4 {[%clk 0:02:16]} 14. Bxe4 {[%clk 0:02:32]}  O-O {[%clk 0:02:16]} 15. h5 {[%clk 0:02:31]}  d5 {[%clk 0:02:01]} 16. Bb1 {[%clk 0:02:24]}  Bh3 {[%clk 0:01:45]} 17. Re1 {[%clk 0:02:21]}  Qd7 {[%clk 0:01:46]} 18. h6 {[%clk 0:02:08]}  Bf6 {[%clk 0:01:41]} 19. Bf4 {[%clk 0:01:57]}  Rb6 {[%clk 0:01:29]} 20. Bc2 {[%clk 0:01:47]}  Rc8 {[%clk 0:01:25]} 21. Rc1 {[%clk 0:01:37]}  Bg4 {[%clk 0:01:11]} 22. Qd2 {[%clk 0:01:29]}  Bf3 {[%clk 0:01:03]} 23. Qe3 {[%clk 0:01:27]}  Qg4 {[%clk 0:01:01]} 24. Bf5 {[%clk 0:01:07]}  Qxf5 {[%clk 0:00:56]} 25. Rxc8+ {[%clk 0:01:06]}  Qxc8 {[%clk 0:00:57]} 26. Qxf3 {[%clk 0:01:07]}  Qd7 {[%clk 0:00:43]} 27. Be5 {[%clk 0:01:00]}  Bxe5 {[%clk 0:00:26]} 28. Rxe5 {[%clk 0:00:57]}  e6 {[%clk 0:00:24]} 29. Qf6 {[%clk 0:00:56]} 1-0


[Site "https://www.chess.com"]

[Event "Titled Tuesday Blitz March 07 Early 2023"]
[White "Dwilewicz, Katarzyna"]
[Black "Rottenwohrer Suarez, Juan"]
[WhiteFideId "1148486"]
[BlackFideId "32068182"]
[WhiteElo "2065"]
[BlackElo "2174"]
[Result "0-1"]
[Round "08"]
[TimeControl "180+2"]
[Date "2023.03.07"]
[WhiteClock "0:00:02"]
[BlackClock "0:00:03"]

1. e4 {[%clk 0:03:00]}  c5 {[%clk 0:03:00]} 2. Nf3 {[%clk 0:03:00]}  g6 {[%clk 0:03:00]} 3. c3 {[%clk 0:03:00]}  d5 {[%clk 0:03:00]} 4. exd5 {[%clk 0:02:59]}  Qxd5 {[%clk 0:03:01]} 5. d4 {[%clk 0:03:00]}  Bg7 {[%clk 0:03:02]} 6. Be2 {[%clk 0:02:57]}  Nf6 {[%clk 0:03:00]} 7. O-O {[%clk 0:02:57]}  cxd4 {[%clk 0:03:00]} 8. cxd4 {[%clk 0:02:56]}  O-O {[%clk 0:03:00]} 9. Nc3 {[%clk 0:02:56]}  Qa5 {[%clk 0:03:00]} 10. Bd2 {[%clk 0:02:54]}  Nc6 {[%clk 0:02:46]} 11. Re1 {[%clk 0:02:49]}  Bg4 {[%clk 0:02:43]} 12. Be3 {[%clk 0:01:44]}  Rfd8 {[%clk 0:02:37]} 13. h3 {[%clk 0:01:43]}  Bf5 {[%clk 0:02:32]} 14. Bc4 {[%clk 0:01:36]}  h6 {[%clk 0:02:27]} 15. Qb3 {[%clk 0:01:32]}  e6 {[%clk 0:01:56]} 16. g4 {[%clk 0:01:20]}  Nxg4 {[%clk 0:01:46]} 17. hxg4 {[%clk 0:01:19]}  Bxg4 {[%clk 0:01:47]} 18. Nh2 {[%clk 0:01:16]}  Nxd4 {[%clk 0:01:44]} 19. Bxd4 {[%clk 0:01:05]}  Rxd4 {[%clk 0:01:43]} 20. Re4 {[%clk 0:01:04]}  Qg5 {[%clk 0:01:05]} 21. Kh1 {[%clk 0:00:49]}  Bf5 {[%clk 0:00:55]} 22. Rxd4 {[%clk 0:00:46]}  Bxd4 {[%clk 0:00:56]} 23. Rg1 {[%clk 0:00:43]}  Qf4 {[%clk 0:00:53]} 24. Ne2 {[%clk 0:00:24]}  Qxf2 {[%clk 0:00:38]} 25. Nxd4 {[%clk 0:00:22]}  Qxd4 {[%clk 0:00:36]} 26. Be2 {[%clk 0:00:20]}  Rd8 {[%clk 0:00:28]} 27. Qg3 {[%clk 0:00:20]}  Qxb2 {[%clk 0:00:23]} 28. Bg4 {[%clk 0:00:14]}  Be4+ {[%clk 0:00:17]} 29. Bf3 {[%clk 0:00:13]}  Bxf3+ {[%clk 0:00:17]} 30. Nxf3 {[%clk 0:00:13]}  Kg7 {[%clk 0:00:14]} 31. Nh4 {[%clk 0:00:10]}  Qf6 {[%clk 0:00:11]} 32. Nf3 {[%clk 0:00:06]}  Rd3 {[%clk 0:00:10]} 33. Kg2 {[%clk 0:00:05]}  b5 {[%clk 0:00:06]} 34. Rf1 {[%clk 0:00:06]}  a5 {[%clk 0:00:06]} 35. Rf2 {[%clk 0:00:06]}  b4 {[%clk 0:00:06]} 36. Qc7 {[%clk 0:00:06]}  Qc3 {[%clk 0:00:03]} 37. Qe5+ {[%clk 0:00:05]}  Qxe5 {[%clk 0:00:03]} 38. Nxe5 {[%clk 0:00:06]}  Ra3 {[%clk 0:00:02]} 39. Rxf7+ {[%clk 0:00:07]}  Kg8 {[%clk 0:00:02]} 40. Rf2 {[%clk 0:00:07]}  a4 {[%clk 0:00:03]} 41. Nxg6 {[%clk 0:00:07]}  b3 {[%clk 0:00:03]} 42. axb3 {[%clk 0:00:07]}  axb3 {[%clk 0:00:04]} 43. Ne5 {[%clk 0:00:05]}  Ra2 {[%clk 0:00:04]} 44. Nc4 {[%clk 0:00:05]}  Kg7 {[%clk 0:00:03]} 45. Kf3 {[%clk 0:00:05]}  Rxf2+ {[%clk 0:00:03]} 46. Kxf2 {[%clk 0:00:05]}  Kf6 {[%clk 0:00:04]} 47. Kf3 {[%clk 0:00:05]}  Kf5 {[%clk 0:00:04]} 48. Ne3+ {[%clk 0:00:04]}  Ke5 {[%clk 0:00:04]} 49. Nc4+ {[%clk 0:00:02]}  Kd4 {[%clk 0:00:04]} 50. Nb2 {[%clk 0:00:03]}  h5 {[%clk 0:00:04]} 51. Kg3 {[%clk 0:00:03]}  Kc3 {[%clk 0:00:03]} 52. Na4+ {[%clk 0:00:02]}  Kc2 {[%clk 0:00:03]} 53. Kh4 {[%clk 0:00:02]}  e5 {[%clk 0:00:02]} 54. Kxh5 {[%clk 0:00:01]}  e4 {[%clk 0:00:03]} 55. Kg4 {[%clk 0:00:02]}  e3 {[%clk 0:00:03]} 56. Kf3 {[%clk 0:00:03]}  Kd2 {[%clk 0:00:03]} 57. Nb2 {[%clk 0:00:02]}  e2 {[%clk 0:00:03]} 58. Nc4+ {[%clk 0:00:03]}  Kd1 {[%clk 0:00:03]} 59. Nb2+ {[%clk 0:00:02]}  Kc2 {[%clk 0:00:02]} 60. Kxe2 {[%clk 0:00:02]}  Kxb2 {[%clk 0:00:02]} 61. Kd2 {[%clk 0:00:03]}  Ka2 {[%clk 0:00:03]} 62. Kc3 {[%clk 0:00:02]}  b2 {[%clk 0:00:03]} 0-1


[Site "https://www.chess.com"]

[Event "Titled Tuesday Blitz March 07 Early 2023"]
[White "Dishman, Stephen"]
[Black "Sreyas Payyappat"]
[WhiteFideId "403024"]
[BlackFideId "46674969"]
[WhiteElo "2204"]
[BlackElo "2083"]
[Result "0-1"]
[Round "08"]
[TimeControl "180+2"]
[Date "2023.03.07"]
[WhiteClock "0:00:43"]
[BlackClock "0:00:48"]

1. d4 {[%clk 0:02:54]}  Nf6 {[%clk 0:02:57]} 2. Bg5 {[%clk 0:02:54]}  d5 {[%clk 0:02:54]} 3. Nd2 {[%clk 0:02:52]}  c5 {[%clk 0:02:51]} 4. Bxf6 {[%clk 0:02:52]}  exf6 {[%clk 0:02:51]} 5. dxc5 {[%clk 0:02:52]}  Bxc5 {[%clk 0:02:52]} 6. e3 {[%clk 0:02:51]}  O-O {[%clk 0:02:51]} 7. Nb3 {[%clk 0:02:50]}  Bb6 {[%clk 0:02:50]} 8. Nf3 {[%clk 0:02:49]}  Nc6 {[%clk 0:02:49]} 9. Be2 {[%clk 0:02:49]}  Bg4 {[%clk 0:02:47]} 10. O-O {[%clk 0:02:48]}  Ne5 {[%clk 0:02:40]} 11. Nfd4 {[%clk 0:02:46]}  Bxe2 {[%clk 0:02:35]} 12. Qxe2 {[%clk 0:02:45]}  Re8 {[%clk 0:02:32]} 13. c3 {[%clk 0:02:42]}  a5 {[%clk 0:02:26]} 14. a4 {[%clk 0:02:41]}  Nc4 {[%clk 0:02:25]} 15. Rad1 {[%clk 0:02:38]}  Re4 {[%clk 0:02:22]} 16. Nb5 {[%clk 0:02:24]}  Nxe3 {[%clk 0:01:51]} 17. fxe3 {[%clk 0:02:02]}  Rxe3 {[%clk 0:01:52]} 18. Qf2 {[%clk 0:01:38]}  Re2 {[%clk 0:01:47]} 19. N3d4 {[%clk 0:01:37]}  Rxf2 {[%clk 0:01:46]} 20. Rxf2 {[%clk 0:01:38]}  Qd7 {[%clk 0:01:44]} 21. Rfd2 {[%clk 0:01:37]}  Re8 {[%clk 0:01:43]} 22. h3 {[%clk 0:01:33]}  g6 {[%clk 0:01:39]} 23. Kh1 {[%clk 0:01:32]}  Re3 {[%clk 0:01:21]} 24. Rd3 {[%clk 0:01:18]}  Qe7 {[%clk 0:01:09]} 25. R3d2 {[%clk 0:01:09]}  Qe4 {[%clk 0:00:50]} 26. Nc2 {[%clk 0:00:43]}  Rxh3# {[%clk 0:00:48]} 0-1


[Site "https://www.chess.com"]

[Event "Titled Tuesday Blitz March 07 Early 2023"]
[White "Tagliati, Eleonore"]
[Black "Postnikov, Artem"]
[WhiteFideId "45172234"]
[BlackFideId "34153575"]
[WhiteElo "2238"]
[BlackElo "2243"]
[Result "0-1"]
[Round "08"]
[TimeControl "180+2"]
[Date "2023.03.07"]
[WhiteClock "0:00:02"]
[BlackClock "0:00:02"]

1. e4 {[%clk 0:03:00]}  e5 {[%clk 0:02:43]} 2. Nf3 {[%clk 0:02:59]}  Nc6 {[%clk 0:02:44]} 3. Bc4 {[%clk 0:02:59]}  Bc5 {[%clk 0:02:44]} 4. d3 {[%clk 0:02:57]}  Nf6 {[%clk 0:02:42]} 5. Bg5 {[%clk 0:02:55]}  h6 {[%clk 0:02:36]} 6. Bh4 {[%clk 0:02:50]}  g5 {[%clk 0:02:35]} 7. Bg3 {[%clk 0:02:49]}  d6 {[%clk 0:02:35]} 8. c3 {[%clk 0:02:44]}  Bg4 {[%clk 0:02:20]} 9. Qb3 {[%clk 0:02:38]}  Qd7 {[%clk 0:01:53]} 10. Qxb7 {[%clk 0:02:23]}  Rb8 {[%clk 0:01:52]} 11. Qa6 {[%clk 0:02:23]}  Bxf3 {[%clk 0:01:34]} 12. gxf3 {[%clk 0:02:10]}  Ne7 {[%clk 0:01:23]} 13. b4 {[%clk 0:02:00]}  Bb6 {[%clk 0:01:22]} 14. a4 {[%clk 0:01:45]}  c6 {[%clk 0:01:06]} 15. a5 {[%clk 0:01:24]}  Bd8 {[%clk 0:01:04]} 16. Nd2 {[%clk 0:01:17]}  O-O {[%clk 0:00:55]} 17. h4 {[%clk 0:01:09]}  Ng6 {[%clk 0:00:47]} 18. hxg5 {[%clk 0:01:05]}  hxg5 {[%clk 0:00:48]} 19. Bb3 {[%clk 0:00:58]}  Kg7 {[%clk 0:00:45]} 20. Ba4 {[%clk 0:00:53]}  Rc8 {[%clk 0:00:39]} 21. Ke2 {[%clk 0:00:45]}  d5 {[%clk 0:00:35]} 22. Rag1 {[%clk 0:00:40]}  Be7 {[%clk 0:00:17]} 23. Rg2 {[%clk 0:00:17]}  Rh8 {[%clk 0:00:14]} 24. Rxh8 {[%clk 0:00:16]}  Kxh8 {[%clk 0:00:12]} 25. Rh2+ {[%clk 0:00:17]}  Kg7 {[%clk 0:00:12]} 26. c4 {[%clk 0:00:14]}  dxe4 {[%clk 0:00:10]} 27. fxe4 {[%clk 0:00:12]}  Bxb4 {[%clk 0:00:10]} 28. Nf3 {[%clk 0:00:10]}  Rd8 {[%clk 0:00:10]} 29. Bc2 {[%clk 0:00:08]}  Nf4+ {[%clk 0:00:04]} 30. Bxf4 {[%clk 0:00:08]}  exf4 {[%clk 0:00:04]} 31. Rg2 {[%clk 0:00:09]}  g4 {[%clk 0:00:04]} 32. Ne5 {[%clk 0:00:09]}  Qe6 {[%clk 0:00:04]} 33. Nxg4 {[%clk 0:00:05]}  Nxg4 {[%clk 0:00:04]} 34. f3 {[%clk 0:00:05]}  f5 {[%clk 0:00:04]} 35. fxg4 {[%clk 0:00:05]}  fxg4 {[%clk 0:00:05]} 36. Qb7+ {[%clk 0:00:04]}  Rd7 {[%clk 0:00:03]} 37. Qc8 {[%clk 0:00:04]}  f3+ {[%clk 0:00:03]} 38. Kf2 {[%clk 0:00:05]}  fxg2 {[%clk 0:00:03]} 39. Kxg2 {[%clk 0:00:05]}  Bf8 {[%clk 0:00:01]} 40. d4 {[%clk 0:00:04]}  Qf7 {[%clk 0:00:02]} 41. e5 {[%clk 0:00:04]}  Qf3+ {[%clk 0:00:02]} 42. Kg1 {[%clk 0:00:03]}  Qg3+ {[%clk 0:00:02]} 43. Kf1 {[%clk 0:00:03]}  Rf7+ {[%clk 0:00:02]} 44. Ke2 {[%clk 0:00:02]}  Rf2+ {[%clk 0:00:02]} 0-1


[Site "https://www.chess.com"]